fUST/lending_fUST_20260107
["ID","MTS","AMOUNT","RATE_DAILY","PERIOD"]
[400606172,1767741048445,-15905.49,0.000327,8]
[400606174,1767741048455,-2344.99085773,0.00032742,2]
[400606176,1767741048464,-205.8638811,0.00032849,2]
[400606178,1767741048474,-1319.1,0.00032876,120]
[400606180,1767741048484,-1749.78,0.00032876,120]
[400606182,1767741048494,-151.0,0.00032877,31]
[400606184,1767741048503,-151.0,0.00032877,31]
[400606186,1767741048513,-7103.73,0.00032877,10]
[400606188,1767741048522,-500.0,0.00032877,5]
[400606190,1767741048533,-1150.0,0.00032877,5]
[400606192,1767741048543,-151.0,0.00032877,31]
[400606194,1767741048552,-151.0,0.00032877,31]
[400606196,1767741048562,-151.0,0.00032877,31]
[400606198,1767741048571,-219.665372,0.00032877,31]
[400606200,1767741048580,-219.665372,0.00032877,31]
[400606202,1767741048589,-219.665372,0.00032877,31]
[400606204,1767741048599,-219.665372,0.00032877,31]
[400606206,1767741048608,-5000.0,0.00032877,31]
[400606208,1767741048617,-5000.0,0.00032877,31]
[400606210,1767741048626,-376.145115,0.00032877,31]
[400606212,1767741048635,-376.145115,0.00032877,31]
[400606213,1767741048644,-376.145115,0.00032877,31]
[400606216,1767741048654,-376.145115,0.00032877,31]
[400606218,1767741048665,-151.0,0.00032877,31]
[400606220,1767741048675,-271.757998,0.00032877,31]
[400606222,1767741048685,-500.0,0.00032877,7]
[400606224,1767741048695,-541.79744446,0.00032877,7]
[400606226,1767741048704,-500.0,0.00032877,7]
[400606227,1767741048713,-500.0,0.00032877,7]
[400606229,1767741048724,-500.0,0.00032877,7]
[400606231,1767741048734,-500.0,0.00032877,7]
[400606233,1767741048744,-500.0,0.00032877,7]
[400606236,1767741048753,-500.0,0.00032877,7]
[400606238,1767741048763,-500.0,0.00032877,7]
[400606240,1767741048773,-500.0,0.00032877,7]
[400606242,1767741048785,-500.0,0.00032877,7]
[400606244,1767741048795,-2000.0,0.00032884,15]
[400606245,1767741048804,-1000.0,0.00032892,14]
[400606248,1767741048814,-187.43102882,0.000329,120]
[400606249,1767741048824,-240.54899317,0.000329,120]
[400606251,1767741048833,-185.65429275,0.000329,120]
[400606253,1767741048843,-1319.1,0.00032904,120]
[400606256,1767741048853,-299.5,0.0003291,5]
[400606258,1767741048863,-10000.0,0.00032917,15]
[400606260,1767741048873,-1319.1,0.00032931,120]
[400606261,1767741048882,-1319.1,0.00032958,120]
[400606263,1767741048891,-1319.1,0.00032986,120]
[400606265,1767741048901,-10000.0,0.00032999,20]
[400606267,1767741048911,-1041.66666667,0.00033,120]
[400606269,1767741048921,-1041.66666667,0.00033,10]
[400606271,1767741048930,-166.0,0.00033,14]
[400606273,1767741048940,-1100.0,0.00033006,14]
[400606275,1767741048949,-1319.1,0.00033013,120]
[400606277,1767741048958,-1319.1,0.00033041,120]
[400606279,1767741048969,-1319.1,0.00033068,120]
[400606281,1767741048978,-2344.99085773,0.00033073,2]
[400606283,1767741048988,-1319.1,0.00033095,120]
[400606285,1767741048997,-2612.25,0.000331,30]
[400606287,1767741049008,-284.42,0.000331,7]
[400606289,1767741049018,-224.03,0.000331,7]
[400606291,1767741049028,-22465.31,0.000331,14]
[400606293,1767741049039,-1500.0,0.000331,16]
[400606295,1767741049049,-804.92806364,0.00033111,120]
[400606297,1767741049059,-1319.1,0.00033123,120]
[400606300,1767741049077,-151.0,0.00033126,31]
[400606302,1767741049089,-151.0,0.00033126,31]
[400606304,1767741049100,-151.0,0.00033126,31]
[400606306,1767741049110,-151.0,0.00033126,31]
[400606308,1767741049120,-151.0,0.00033126,31]
[400606310,1767741049129,-2145.0,0.00033146,2]
[400606312,1767741049138,-628.0,0.00033146,2]
[400606314,1767741049147,-714.0,0.00033147,2]
[400606316,1767741049157,-178.0,0.00033147,2]
[400606318,1767741049166,-417.0,0.00033147,2]
[400606320,1767741049176,-787.72,0.0003315,34]
[400606322,1767741049186,-1319.1,0.0003315,120]
[400606324,1767741049195,-1319.1,0.00033178,120]
[400606326,1767741049204,-1000.0,0.00033185,14]
[400606328,1767741049215,-10000.0,0.00033199,30]
[400606330,1767741049224,-295.33605295,0.000332,117]
[400606332,1767741049233,-295.33605291,0.000332,117]
[400606334,1767741049243,-295.33605291,0.000332,117]
[400606336,1767741049252,-295.33605291,0.000332,117]
[400606338,1767741049262,-1319.1,0.00033205,120]
[400606340,1767741049271,-663.93287602,0.00033218,2]
[400606342,1767741049281,-1319.1,0.00033232,120]
[400606344,1767741049291,-1319.1,0.0003326,120]
[400606346,1767741049301,-2344.99085773,0.0003326,2]
[400606348,1767741049312,-1319.1,0.00033287,120]
[400606350,1767741049322,-1319.1,0.00033315,120]
[400606352,1767741049335,-1319.1,0.00033342,120]
[400606354,1767741049347,-10000.0,0.00033368,30]
[400606356,1767741049357,-1319.1,0.00033369,120]
[400606358,1767741049367,-277.0,0.00033392,2]
[400606360,1767741049379,-1319.1,0.00033397,120]
[400606362,1767741049389,-1319.1,0.00033424,120]
[400606364,1767741049402,-376.8200359,0.00033425,30]
[400606366,1767741049414,-159.0859127,0.00033425,30]
[400606368,1767741049423,-1319.1,0.00033452,120]
[400606370,1767741049433,-376.8200359,0.00033452,30]
[400606372,1767741049444,-1000.0,0.00033478,14]
[400606374,1767741049454,-1319.1,0.00033479,120]
[400606376,1767741049464,-2000.0,0.00033496,7]
[400606378,1767741049474,-2875.05,0.000335,7]
[400606380,1767741049484,-1319.28,0.00033506,120]
[400606382,1767741049494,-3285.51526256,0.00033576,2]
[400606384,1767741049504,-1500.0,0.000336,16]
[400606386,1767741049514,-2344.99085773,0.00033608,2]
[400606388,1767741049524,-500.0,0.0003365,10]
[400606390,1767741049534,-500.0,0.0003365,10]
[400606392,1767741049544,-500.0,0.0003365,10]
[400606394,1767741049554,-500.0,0.0003365,10]
[400606396,1767741049563,-500.0,0.0003365,10]
[400606398,1767741049573,-500.0,0.0003365,10]
[400606400,1767741049582,-500.0,0.0003365,30]
[400606402,1767741049591,-500.0,0.0003365,10]
[400606404,1767741049601,-500.0,0.0003365,10]
[400606406,1767741049611,-512.07627404,0.0003365,10]
[400606408,1767741049620,-500.0,0.0003365,10]
[400606410,1767741049630,-800.0,0.00033679,2]
[400606412,1767741049640,-10000.0,0.00033697,30]
[400606414,1767741049650,-787.72,0.00033698,35]
[400606416,1767741049659,-210.0,0.00033699,5]
[400606418,1767741049669,-2344.99085773,0.00033724,2]
[400606420,1767741049678,-297.0,0.00033725,2]
[400606422,1767741049688,-800.0,0.00033734,2]
[400606434,1767741049795,-688.49839244,0.00033766,2]
[400606437,1767741049806,-4836.43196659,0.00033769,35]
[400606439,1767741049815,-1000.0,0.00033771,14]
[400606441,1767741049825,-1100.0,0.00033828,14]
[400606443,1767741049835,-8160.89671705,0.0003387,2]
[400606445,1767741049844,-800.0,0.00033892,2]
[400606446,1767741049854,-187.43102882,0.000339,120]
[400606449,1767741049864,-240.54899317,0.000339,120]
[400606451,1767741049874,-800.0,0.00033912,2]
[400606453,1767741049883,-800.0,0.00033961,2]
[400606455,1767741049892,-153.0,0.00033973,30]
[400606457,1767741049902,-153.0,0.00033973,30]
[400606459,1767741049912,-153.0,0.00033973,30]
[400606461,1767741049921,-153.0,0.00033973,30]
[400606463,1767741049931,-153.0,0.00033973,30]
[400606465,1767741049941,-153.0,0.00033973,30]
[400606467,1767741049950,-153.0,0.00033973,30]
[400606469,1767741049959,-800.0,0.00033993,2]
[400606471,1767741049968,-2573.21019914,0.00034,120]
[400606473,1767741049978,-1274.87246807,0.00034,30]
[400606476,1767741049988,-1041.66666667,0.00034,10]
[400606479,1767741049997,-155.6642443,0.00034,30]
[400606480,1767741050007,-193.7123872,0.00034,30]
[400606483,1767741050016,-619.3481601,0.00034,30]
[400606484,1767741050026,-193.7123872,0.00034,30]
[400606486,1767741050036,-153.0,0.00034,30]
[400606488,1767741050044,-600.6566519,0.00034,30]
[400606490,1767741050054,-193.7123872,0.00034,30]
[400606492,1767741050063,-153.0,0.00034,30]
[400606494,1767741050072,-600.6566519,0.00034,30]
[400606497,1767741050081,-193.7123872,0.00034,30]
[400606499,1767741050092,-153.0,0.00034,30]
[400606501,1767741050102,-600.6566519,0.00034,30]
[400606503,1767741050111,-600.6566519,0.00034,30]
[400606505,1767741050120,-193.7123872,0.00034,30]
[400606507,1767741050130,-600.6566519,0.00034,30]
[400606509,1767741050140,-153.0,0.00034,30]
[400606511,1767741050150,-600.6566519,0.00034,30]
[400606513,1767741050158,-600.6566519,0.00034,30]
[400606515,1767741050168,-413.4277887,0.00034,30]
[400606517,1767741050177,-193.7123872,0.00034,30]
[400606519,1767741050186,-600.6566519,0.00034,30]
[400606521,1767741050195,-193.7123872,0.00034,30]
[400606523,1767741050205,-600.6566519,0.00034,30]
[400606525,1767741050214,-600.6566519,0.00034,30]
[400606527,1767741050223,-193.7123872,0.00034,30]
[400606529,1767741050234,-600.6566519,0.00034,30]
[400606531,1767741050243,-800.0,0.00034002,2]
[400606533,1767741050253,-1000.0,0.00034064,14]
[400606535,1767741050263,-777.0,0.000341,2]
[400606537,1767741050272,-1500.0,0.000341,16]
[400606538,1767741050282,-2344.99085773,0.00034112,2]
[400606541,1767741050292,-800.0,0.00034242,2]
[400606543,1767741050302,-800.0,0.00034244,2]
[400606545,1767741050312,-10000.0,0.00034245,30]
[400606547,1767741050322,-10000.0,0.00034245,30]
[400606549,1767741050332,-787.72,0.00034246,36]
[400606551,1767741050343,-1749.78,0.00034246,120]
[400606553,1767741050352,-171.97363199,0.00034275,2]
[400606555,1767741050361,-3233.8122455,0.00034286,2]
[400606557,1767741050372,-2000.0,0.00034309,7]
[400606559,1767741050381,-713.97283296,0.00034314,2]
[400606561,1767741050390,-1000.0,0.00034357,14]
[400606563,1767741050399,-376.8200359,0.00034411,30]
[400606565,1767741050412,-10000.0,0.00034412,30]
[400606567,1767741050421,-10000.0,0.00034437,6]
[400606569,1767741050430,-299.5,0.00034455,6]
[400606571,1767741050440,-2344.99085783,0.00034515,2]
[400606573,1767741050450,-10000.0,0.0003452,5]
[400606575,1767741050459,-270.0,0.00034521,5]
[400606577,1767741050468,-166.0,0.00034521,30]
[400606579,1767741050478,-745.0,0.00034523,11]
[400606581,1767741050489,-800.0,0.00034529,2]
[400606583,1767741050498,-800.0,0.00034545,2]
[400606585,1767741050508,-1364.653193,0.0003456,9]
[400606587,1767741050518,-600.0,0.0003456,2]
[400606589,1767741050527,-800.0,0.00034563,2]
[400606591,1767741050539,-1000.0,0.0003458,9]
[400606593,1767741050548,-1205.834353,0.0003458,9]
[400606595,1767741050558,-800.0,0.00034582,2]
[400606597,1767741050567,-10000.0,0.00034599,10]
[400606599,1767741050577,-10000.0,0.00034599,9]
[400606601,1767741050586,-10000.0,0.00034599,16]
[400606603,1767741050596,-10000.0,0.00034599,8]
[400606605,1767741050605,-1000.0,0.000346,9]
[400606607,1767741050614,-1000.0,0.000346,9]
[400606609,1767741050623,-250.0,0.000346,10]
[400606611,1767741050633,-449.0,0.000346,2]
[400606613,1767741050648,-1500.0,0.000346,16]
[400606616,1767741050662,-10000.0,0.00034605,2]
[400606618,1767741050671,-10000.0,0.00034623,11]
[400606620,1767741050681,-177.0,0.0003463,71]
[400606622,1767741050691,-151.0,0.00034649,31]
[400606624,1767741050700,-273.427612,0.00034649,31]
[400606626,1767741050710,-10000.0,0.00034649,7]
[400606628,1767741050720,-10000.0,0.00034649,14]
[400606630,1767741050730,-10000.0,0.00034649,30]
[400606632,1767741050739,-10000.0,0.00034649,4]
[400606634,1767741050750,-3275.26089068,0.0003465,4]
[400606636,1767741050759,-1100.0,0.0003465,14]
[400606638,1767741050768,-166.0,0.0003465,7]
[400606640,1767741050778,-166.0,0.0003465,7]
[400606643,1767741050789,-357.37586378,0.0003465,7]
[400606645,1767741050798,-166.0,0.0003465,7]
[400606647,1767741050808,-152.0,0.0003465,7]
[400606649,1767741050817,-163.0,0.0003465,7]
[400606651,1767741050826,-152.0,0.0003465,7]
[400606653,1767741050835,-163.0,0.0003465,7]
[400606655,1767741050845,-152.0,0.0003465,7]
[400606657,1767741050855,-185.22374852,0.0003465,7]
[400606659,1767741050864,-152.0,0.0003465,7]
[400606661,1767741050873,-152.0,0.0003465,7]
[400606663,1767741050883,-152.0,0.0003465,7]
[400606665,1767741050892,-152.0,0.0003465,7]
[400606667,1767741050901,-152.0,0.0003465,7]
[400606669,1767741050911,-152.0,0.0003465,7]
[400606671,1767741050921,-152.0,0.0003465,7]
[400606673,1767741050930,-153.76138875,0.0003465,7]
[400606675,1767741050940,-152.0,0.0003465,7]
[400606677,1767741050950,-284.0,0.0003465,7]
[400606679,1767741050959,-151.0,0.0003465,31]
[400606681,1767741050968,-151.0,0.0003465,31]
[400606683,1767741050977,-7220.38461701,0.0003465,4]
[400606685,1767741050988,-1942.77852061,0.0003465,4]
[400606687,1767741050998,-268.05037,0.0003465,31]
[400606689,1767741051008,-199.436529,0.0003465,31]
[400606691,1767741051017,-199.436529,0.0003465,31]
[400606693,1767741051027,-199.436529,0.0003465,31]
[400606695,1767741051038,-199.436529,0.0003465,31]
[400606697,1767741051048,-409.331105,0.0003465,31]
[400606699,1767741051057,-409.331105,0.0003465,31]
[400606701,1767741051067,-409.331105,0.0003465,31]
[400606703,1767741051077,-409.331105,0.0003465,31]
[400606705,1767741051086,-13990.23251755,0.0003465,4]
[400606707,1767741051096,-574.71139926,0.0003465,14]
[400606709,1767741051107,-1015385.97322587,0.0003465,4]
[400606724,1767741051239,-3207.40519818,0.00033218,2]
[400606725,1767741051250,-37632.20691679,0.0003465,4]
[400606726,1767741051262,-587.88689563,0.0003465,4]
[400606727,1767741051274,-369270.25983553,0.0003465,4]
[400606728,1767741051286,-20617.38448414,0.0003465,4]
[400606729,1767741051307,-2000.0,0.0003465,4]
[400606730,1767741051395,-8321.0,0.00016438,2]
[400606731,1767741051406,-8321.0,0.00016575,2]
[400606732,1767741051417,-569.74169287,0.00016712,2]
[400606734,1767741051428,-7751.25830713,0.00016712,2]
[400606736,1767741051437,-8321.0,0.00016849,2]
[400606738,1767741051446,-3326.07919052,0.00033766,2]
[400606740,1767741051455,-2969.59810331,0.00034314,2]
[400606750,1767741051548,-479.54601726,0.00034314,2]
[400606752,1767741051558,-719.02369419,0.0003465,4]
[400606754,1767741051569,-721.77980252,0.0003465,4]
[400606757,1767741051580,-1554.47805157,0.0003465,4]
[400606790,1767741051895,-0.00845448,0.0003465,4]
[400606878,1767741052752,-2438.98361281,0.0001589,2]
[400606880,1767741052761,-2035.12026795,0.00016986,2]
[400606889,1767741052834,-6285.87973205,0.00016986,2]
[400606891,1767741052843,-8321.0,0.00017123,2]
[400606893,1767741052853,-8321.0,0.0001726,2]
[400606895,1767741052862,-8321.0,0.00017397,2]
[400606897,1767741052871,-3978.01466539,0.00017534,2]
[400606905,1767741052934,-634.46,0.00017534,2]
[400606907,1767741052945,-577.58926929,0.00017534,2]
[400607927,1767741068736,-155.67,9.789e-05,2]
[400607928,1767741068789,-181.62,0.00010165,2]
[400607929,1767741068840,-207.56,0.00010542,2]
[400607969,1767741208945,152.09,9.965e-05,2]
[400607970,1767741209362,171.1,0.00010321,2]
[400607976,1767741291812,202.52991136,0.00024074,120]
[400607980,1767741366214,-264.02900691,0.00010909,2]
[400608014,1767742054259,3716.8666212,0.00012394,2]
[400608067,1767742231910,-164.7616439,0.00012515,2]
[400608068,1767742231920,-258.74842677,0.00012515,2]
[400608069,1767742231930,-597.0,0.00012515,2]
[400608071,1767742231939,-300.0,0.00013272,2]
[400608072,1767742231948,-159.48995433,0.00013272,2]
[400608073,1767742231962,-140.51004567,0.00013272,2]
[400608074,1767742231971,-300.0,0.00013272,2]
[400608075,1767742231981,-565.47530985,0.00013273,2]
[400608076,1767742231991,-370.72003267,0.00013273,2]
[400608080,1767742237955,-95.11431865,0.00013273,2]
[400608081,1767742237965,-500.0,0.00013273,2]
[400608082,1767742237974,-500.0,0.00013273,2]
[400608083,1767742237984,-500.0,0.00013273,2]
[400608084,1767742237993,-500.0,0.00013273,2]
[400608085,1767742238002,-500.0,0.00013273,2]
[400608086,1767742238011,-500.0,0.00013273,2]
[400608087,1767742238021,-500.0,0.00013273,2]
[400608088,1767742238030,-500.0,0.00013273,2]
[400608089,1767742238040,-210.68917911,0.00013273,2]
[400608100,1767742238183,-232.41734948,0.00013273,2]
[400608103,1767742238198,-500.0,0.00013273,2]
[400608105,1767742238208,-500.0,0.00013273,2]
[400608107,1767742238218,-500.0,0.00013273,2]
[400608109,1767742238227,-500.0,0.00013273,2]
[400608111,1767742238237,-500.0,0.00013273,2]
[400608113,1767742238246,-502.95005986,0.00013273,2]
[400608115,1767742238257,-500.0,0.00013273,2]
[400608117,1767742238267,-500.0,0.00013273,2]
[400608119,1767742238276,-500.93094912,0.00013273,2]
[400608121,1767742238286,-500.0,0.00013273,2]
[400608123,1767742238295,-500.0,0.00013273,2]
[400608125,1767742238305,-500.89572759,0.00013273,2]
[400608127,1767742238315,-500.0,0.00013273,2]
[400608129,1767742238324,-500.0,0.00013273,2]
[400608131,1767742238334,-500.0,0.00013273,2]
[400608132,1767742238343,-4509.48914467,0.00013313,2]
[400608134,1767742238352,-500.0,0.00013412,2]
[400608136,1767742238362,-277.38475389,0.00013412,2]
[400608139,1767742238371,-732.95517046,0.00013412,2]
[400608141,1767742238381,-534.6933877,0.00013412,2]
[400608142,1767742238392,-732.95517046,0.00013412,2]
[400608144,1767742238402,-732.95517046,0.00013412,2]
[400608146,1767742238411,-500.0,0.00013412,2]
[400608149,1767742238421,-732.95517046,0.00013412,2]
[400608150,1767742238431,-732.95517046,0.00013412,2]
[400608152,1767742238440,-732.95517046,0.00013412,2]
[400608154,1767742238450,-732.95517046,0.00013412,2]
[400608157,1767742238460,-732.95517046,0.00013412,2]
[400608159,1767742238469,-732.95517046,0.00013412,2]
[400608160,1767742238479,-732.95517046,0.00013412,2]
[400608162,1767742238488,-432.62119776,0.00013412,2]
[400608165,1767742238498,-500.0,0.00013412,2]
[400608167,1767742238508,-500.0,0.00013412,2]
[400608169,1767742238518,-500.0,0.00013412,2]
[400608170,1767742238527,-500.0,0.00013412,2]
[400608173,1767742238537,-500.0,0.00013412,2]
[400608175,1767742238546,-732.95517046,0.00013412,2]
[400608176,1767742238556,-500.0,0.00013412,2]
[400608179,1767742238566,-500.0,0.00013412,2]
[400608181,1767742238576,-500.0,0.00013412,2]
[400608183,1767742238586,-500.0,0.00013412,2]
[400608185,1767742238596,-500.0,0.00013412,2]
[400608187,1767742238607,-500.0,0.00013412,2]
[400608189,1767742238616,-500.0,0.00013412,2]
[400608191,1767742238626,-500.0,0.00013412,2]
[400608192,1767742238636,-413.5723085,0.00013412,2]
[400608194,1767742238647,-500.0,0.00013412,2]
[400608195,1767742238657,-478.18645174,0.00013412,2]
[400608196,1767742238666,-500.0,0.00013412,2]
[400608197,1767742238676,-500.0,0.00013412,2]
[400608198,1767742238687,-500.0,0.00013412,2]
[400608199,1767742238696,-500.0,0.00013412,2]
[400608200,1767742238705,-500.0,0.00013412,2]
[400608201,1767742238715,-500.0,0.00013412,2]
[400608202,1767742238725,-500.0,0.00013412,2]
[400608203,1767742238734,-500.0,0.00013412,2]
[400608204,1767742238743,-500.0,0.00013412,2]
[400608205,1767742238752,-500.0,0.00013412,2]
[400608206,1767742238761,-500.0,0.00013412,2]
[400608207,1767742238771,-500.0,0.00013412,2]
[400608208,1767742238780,-500.0,0.00013412,2]
[400608209,1767742238789,-338.40791733,0.00013412,2]
[400608210,1767742238798,-732.95517046,0.00013412,2]
[400608211,1767742238808,-500.0,0.00013412,2]
[400608212,1767742238817,-500.0,0.00013412,2]
[400608213,1767742238826,-500.0,0.00013412,2]
[400608214,1767742238836,-500.0,0.00013412,2]
[400608215,1767742238845,-500.0,0.00013412,2]
[400608216,1767742238855,-500.0,0.00013412,2]
[400608217,1767742238864,-732.95517046,0.00013412,2]
[400608218,1767742238874,-500.0,0.00013412,2]
[400608219,1767742238883,-500.0,0.00013412,2]
[400608220,1767742238893,-323.79346544,0.00013412,2]
[400608221,1767742238902,-500.0,0.00013412,2]
[400608222,1767742238916,-500.0,0.00013412,2]
[400608223,1767742238926,-500.0,0.00013412,2]
[400608224,1767742238936,-500.0,0.00013412,2]
[400608225,1767742238946,-500.0,0.00013412,2]
[400608226,1767742238956,-500.0,0.00013412,2]
[400608227,1767742238965,-500.0,0.00013412,2]
[400608228,1767742238975,-500.0,0.00013412,2]
[400608229,1767742238984,-500.0,0.00013412,2]
[400608230,1767742238994,-500.0,0.00013412,2]
[400608231,1767742239004,-500.0,0.00013412,2]
[400608232,1767742239016,-500.0,0.00013412,2]
[400608233,1767742239026,-500.0,0.00013412,2]
[400608234,1767742239036,-500.0,0.00013412,2]
[400608235,1767742239046,-500.0,0.00013412,2]
[400608236,1767742239055,-500.0,0.00013412,2]
[400608237,1767742239065,-500.0,0.00013412,2]
[400608238,1767742239074,-500.0,0.00013412,2]
[400608239,1767742239084,-1000000.0,0.00013413,2]
[400608240,1767742239094,-151.0,0.000135,2]
[400608241,1767742239103,-151.0,0.000135,2]
[400608242,1767742239113,-151.0,0.000135,2]
[400608243,1767742239122,-151.0,0.000135,2]
[400608244,1767742239132,-151.0,0.000135,2]
[400608245,1767742239141,-151.0,0.000135,2]
[400608246,1767742239151,-151.0,0.000135,2]
[400608247,1767742239160,-151.0,0.000135,2]
[400608248,1767742239170,-151.0,0.000135,2]
[400608249,1767742239179,-151.0,0.000135,2]
[400608250,1767742239189,-151.0,0.000135,2]
[400608251,1767742239198,-151.0,0.000135,2]
[400608252,1767742239208,-151.0,0.000135,2]
[400608253,1767742239217,-151.0,0.000135,2]
[400608254,1767742239227,-151.0,0.000135,2]
[400608255,1767742239237,-151.0,0.000135,2]
[400608256,1767742239247,-151.0,0.000135,2]
[400608257,1767742239257,-258.921,0.000135,2]
[400608258,1767742239266,-184.7045463,0.000135,2]
[400608259,1767742239276,-151.0,0.000135,2]
[400608260,1767742239285,-300.0,0.00013673,2]
[400608261,1767742239294,-500.0,0.00013698,2]
[400608262,1767742239304,-500.0,0.00013698,2]
[400608263,1767742239313,-500.0,0.00013698,2]
[400608264,1767742239323,-500.0,0.00013698,2]
[400608265,1767742239332,-500.0,0.00013698,2]
[400608266,1767742239342,-500.0,0.00013698,2]
[400608267,1767742239351,-580.76,0.00013698,2]
[400608268,1767742239361,-3510.39,0.00013698,2]
[400608269,1767742239370,-3510.39,0.00013698,2]
[400608270,1767742239380,-3510.39,0.00013698,2]
[400608271,1767742239389,-3510.39,0.00013698,2]
[400608272,1767742239398,-3510.39,0.00013698,2]
[400608273,1767742239408,-3510.39,0.00013698,2]
[400608274,1767742239418,-3510.39,0.00013698,2]
[400608275,1767742239427,-3510.39,0.00013698,2]
[400608276,1767742239436,-3510.39,0.00013698,2]
[400608277,1767742239447,-3510.39,0.00013698,2]
[400608278,1767742239456,-3510.39,0.00013698,2]
[400608279,1767742239467,-3510.39,0.00013698,2]
[400608280,1767742239477,-3510.39,0.00013698,2]
[400608281,1767742239487,-3510.39,0.00013698,2]
[400608282,1767742239496,-3510.39,0.00013698,2]
[400608284,1767742239507,-3510.39,0.00013698,2]
[400608285,1767742239516,-3510.39,0.00013698,2]
[400608286,1767742239528,-3510.39,0.00013698,2]
[400608287,1767742239537,-3510.39,0.00013698,2]
[400608288,1767742239546,-3510.39,0.00013698,2]
[400608289,1767742239555,-3510.39,0.00013698,2]
[400608290,1767742239565,-3510.39,0.00013698,2]
[400608291,1767742239575,-3510.39,0.00013698,2]
[400608292,1767742239584,-3510.46251885,0.00013698,2]
[400608293,1767742239593,-500.0,0.00013698,2]
[400608294,1767742239602,-500.0,0.00013698,2]
[400608295,1767742239612,-577.08,0.00013698,2]
[400608297,1767742239621,-500.0,0.00013698,2]
[400608299,1767742239630,-500.0,0.00013698,2]
[400608301,1767742239639,-361.95914229,0.00013698,2]
[400608303,1767742239652,-466.89772029,0.00013698,2]
[400608305,1767742239661,-2439.506638,0.00013699,2]
[400608306,1767742239670,-135714.8113562,0.00013699,2]
[400608307,1767742239680,-500.0,0.00013699,2]
[400608308,1767742239690,-500.0,0.00013699,2]
[400608309,1767742239699,-500.0,0.00013699,2]
[400608310,1767742239708,-500.0,0.00013699,2]
[400608311,1767742239717,-500.0,0.00013699,2]
[400608312,1767742239727,-500.0,0.00013699,2]
[400608313,1767742239736,-500.0,0.00013699,2]
[400608314,1767742239745,-500.0,0.00013699,2]
[400608315,1767742239754,-500.0,0.00013699,2]
[400608316,1767742239763,-500.0,0.00013699,2]
[400608317,1767742239772,-500.0,0.00013699,2]
[400608318,1767742239781,-500.0,0.00013699,2]
[400608319,1767742239790,-500.0,0.00013699,2]
[400608320,1767742239800,-500.0,0.00013699,2]
[400608321,1767742239809,-500.0,0.00013699,2]
[400608322,1767742239819,-500.0,0.00013699,2]
[400608323,1767742239829,-500.0,0.00013699,2]
[400608324,1767742239840,-500.0,0.00013699,2]
[400608325,1767742239850,-500.0,0.00013699,2]
[400608326,1767742239860,-500.0,0.00013699,2]
[400608328,1767742239870,-500.0,0.00013699,2]
[400608330,1767742239879,-500.0,0.00013699,2]
[400608332,1767742239888,-500.0,0.00013699,2]
[400608333,1767742239897,-540.98419624,0.00013699,2]
[400608334,1767742239907,-501.00450759,0.00013699,2]
[400608335,1767742239917,-500.0,0.00013699,2]
[400608336,1767742239929,-343.49392703,0.00013699,2]
[400608337,1767742239940,-500.0,0.00013699,2]
[400608338,1767742239951,-500.0,0.00013699,2]
[400608339,1767742239960,-500.0,0.00013699,2]